Cogmind - Beta 13 @@@ ROGUE MODE // 2024.04.15 @ 15:57:46 Player: Kinga Result: Destroyed by H-88 Terminator with Heavy Machine Gun Performance ------------- Evolutions (8) 4000 Regions Visited (12) 2400 Robots Destroyed (83) 415 Value Destroyed (2009) 2009 Prototype IDs (16) 320 Alien Tech Used (0) 0 Bonus (149) 149 TOTAL SCORE: 9293 Bonus ------- High Alert Combat Kills 21 Follower Combat Kills 128 Cogmind --------- Core Integrity 0/1450 Matter 158/300 Energy 27/100 System Corruption 15% Temperature Cool (0) Movement Core (50) Location -2/Research Parts ------- > --- POWER (2) -------- (None) > --- PROPULSION (6) --- (None) > --- UTILITY (13) ----- Advanced Signal Interpreter Hacking Suite Advanced Hacking Suite System Shield > --- WEAPON (2) ------- (None) > --- INVENTORY (5) ---- (None) Peak State ------------ > --- POWER ------------ Graviton Reactor > --- PROPULSION ------- Cooled Nuclear Pulse Thruster Electron Diverter Electron Diverter Electron Diverter Impulse Thruster Array > --- UTILITY ---------- Experimental Power Amplifier Energy Well Advanced Signal Interpreter Improved Transmission Jammer Improved Cloaking Device Improved Utility Shielding Layered Heavy Armor Plating Hacking Suite Hacking Suite Advanced Hacking Suite System Shield Long-range Tractor Beam > --- WEAPON ----------- Molecular Scythe > --- INVENTORY -------- Cooled VTOL Module Enhanced Quantum Rifle Smartbomb Launcher [Rating: 134] Favorites ----------- Power Heavy Ion Engine Engine Heavy Ion Engine Power Core Light Nuclear Core Reactor Heavy Antimatter Reactor Propulsion Light Treads Treads Light Treads Wheel Wheel Flight Unit Improved VTOL Module Utility Hacking Suite Device Transmission Jammer Storage Huge Storage Unit Processor Targeting Computer Hackware Hacking Suite Protection Improved Utility Shielding Weapon Autogun Energy Gun Small Laser Ballistic Gun Autogun Launcher Missile Launcher Special Weapon Improved Remote Datajack Impact Weapon Heavy Mace Slashing Weapon Molecular Scythe Build | -11 -10 -9 -8 -7 -6 -5 -5 -5 -4 -3 -3 -2 ------- Run | Yrd Mat Mat Mat Fac Fac Fac Upp Upp Fac Res Tes Res Slots Evolved 16 | . . 2 2 2 2 2 . . 2 2 . 2 Power 1 | . . . . . . 1 . . . . . . Propulsion 4 | . . . . 2 1 . . . . . . 1 Utility 11 | . . 2 2 . 1 1 . . 2 2 . 1 Weapon . | . . . . . . . . . . . . . Parts Attached 135 | 6 4 13 14 15 6 14 2 . 15 12 12 22 Power 19 | 1 . 2 1 4 1 3 . . 2 1 2 2 Engine 8 | 1 . 2 1 3 . 1 . . . . . . Core 5 | . . . . 1 1 2 . . 1 . . . Reactor 6 | . . . . . . . . . 1 1 2 2 Propulsion 29 | 2 . 5 2 5 . 2 . . 4 3 2 4 Treads 7 | 2 . 4 1 . . . . . . . . . Leg . | . . . . . . . . . . . . . Wheel 1 | . . . 1 . . . . . . . . . Hover . | . . . . . . . . . . . . . Flight 21 | . . 1 . 5 . 2 . . 4 3 2 4 Utility 60 | 1 1 5 6 3 5 6 1 . 5 7 7 13 Device 22 | . . . . . 5 2 . . 2 3 5 5 Storage 4 | 1 1 . . . . . . . . . . 2 Processor 3 | . . 1 . 1 . . . . . . 1 . Hackware 11 | . . . 3 . . 2 1 . 1 1 1 2 Protection 20 | . . 4 3 2 . 2 . . 2 3 . 4 Artifact . | . . . . . . . . . . . . . Weapon 27 | 2 3 1 5 3 . 3 1 . 4 1 1 3 Energy Gun 2 | 1 . . . . . . . . . . . 1 Energy Cannon . | . . . . . . . . . . . . . Ballistic Gun 9 | 1 3 1 4 . . . . . . . . . Ballistic Cannon . | . . . . . . . . . . . . . Launcher 4 | . . . 1 1 . . . . . . . 2 Special Weapon 3 | . . . . . . 3 . . . . . . Impact Weapon 6 | . . . . . . . 1 . 4 1 . . Slashing Weapon 3 | . . . . 2 . . . . . . 1 . Piercing Weapon . | . . . . . . . . . . . . . Special Melee Weapon . | . . . . . . . . . . . . . Unidentified Prototypes 16 | . . 2 . 2 1 . . . 2 . 4 5 Parts Lost 70 | . . 7 10 . 1 8 . . 5 12 5 22 Power 9 | . . 1 1 . . 3 . . . . 1 3 Propulsion 19 | . . 2 3 . . 1 . . 3 1 3 6 Utility 34 | . . 3 2 . . 3 . . 2 11 1 12 Weapon 8 | . . 1 4 . 1 1 . . . . . 1 Highest Loss Streak 11 | . . 2 5 . 1 5 . . 3 5 6 11 To Critical Strikes . | . . . . . . . . . . . . . Average Slot Usage (%) 82 | . 85 84 90 98 87 78 76 76 67 74 52 63 Engine 7 | . 14 10 7 3 . 4 . . . . . . Treads 13 | . 28 21 7 . . . . . . . . . Flight 5 | . . . . 28 26 22 23 23 17 23 15 16 Device 4 | . . . . . 14 22 11 11 16 15 4 14 Storage 7 | . 14 11 9 . . . . . . . . 1 Processor 5 | . . 8 6 6 4 . . . . . . 4 Hackware 9 | . . . 21 23 20 12 29 29 23 20 19 15 Protection 9 | . . 10 16 15 6 9 5 5 7 4 1 1 Ballistic Gun 15 | . 24 22 17 . . . . . . . . . Naked Turns . | . . . . . . . . . . . . . Heaviest Build 104 | 10 89 100 104 96 19 28 8 7 38 42 34 48 Greatest Support 55 | 40 40 40 40 20 32 28 10 10 43 43 36 55 Greatest Overweight (x) 32 | 2 2 32 29 9 . . . . . 1 . . Average Overweight (x) . | . 1 2 6 . . . . . . . . . Largest Inventory Capacity 25 | 8 25 25 25 25 5 5 5 5 5 5 5 5 Average Capacity 19 | 7 24 25 25 7 5 5 5 5 5 5 5 5 Most Carried 23 | 2 6 23 23 23 5 5 5 5 5 5 5 5 Average Carried 10 | 1 2 12 18 6 4 4 4 5 4 3 2 4 Final Capacity 25 | 8 25 25 25 5 5 5 5 5 5 5 5 5 Final Carried 23 | 2 5 22 23 5 5 4 5 5 3 5 2 . Class Distribution -------------------- 47% | Mutant 27% | Hacker-Sprinter 17% | Hacker-Mutant 7% | Scavenger-Mutant Dominant Class ---------------- Mutant | -10/Materials Mutant | -9/Materials Hacker-Mutant | -8/Materials Hacker-Sprinter | -7/Factory Hacker-Sprinter | -6/Factory Hacker-Sprinter | -5/Factory Hacker-Sprinter | -5/Upper Caves Hacker-Sprinter | -5/Upper Caves Hacker-Sprinter | -4/Factory Hacker-Sprinter | -3/Research Hacker-Sprinter | -3/Testing Hacker-Sprinter | -2/Research Resources | -11 -10 -9 -8 -7 -6 -5 -5 -5 -4 -3 -3 -2 ----------- Run | Yrd Mat Mat Mat Fac Fac Fac Upp Upp Fac Res Tes Res Matter Collected 2813 | 209 54 1228 638 98 31 146 24 . 81 159 31 114 Remotely 450 | . . . . . 31 146 . . . 159 . 114 Salvage Created 2741 | . 54 1705 863 . . . . . 65 . 31 23 Parts 185 | . 7 115 56 . . . . . . . 2 5 Haulers Intercepted 4 | . . 4 . . . . . . . . . . Recyclers Shooed 3 | . 1 2 . . . . . . . . . . Parts Field Recycled . | . . . . . . . . . . . . . Retrieved Matter . | . . . . . . . . . . . . . Parts Self-Destructed . | . . . . . . . . . . . . . Prevented . | . . . . . . . . . . . . . Kills | -11 -10 -9 -8 -7 -6 -5 -5 -5 -4 -3 -3 -2 ------- Run | Yrd Mat Mat Mat Fac Fac Fac Upp Upp Fac Res Tes Res Combat Hostiles Destroyed 57 | . 3 34 20 . . . . . . . . . Guns 56 | . 3 34 19 . . . . . . . . . AOE 1 | . . . 1 . . . . . . . . . Classes Destroyed 11 | . 2 8 1 . . . . . . . . . Worker 4 | . . 1 2 . . . . . 1 . . . Builder 3 | . . 1 1 . . . . . . . . 1 Hauler 4 | . . 4 . . . . . . . . . . Recycler 4 | . . 3 1 . . . . . . . . . Operator 5 | . 1 2 2 . . . . . . . . . Watcher 6 | . . 2 2 . . . . . 1 . 1 . Swarmer 22 | . 3 12 7 . . . . . . . . . Grunt 25 | . . 15 10 . . . . . . . . . Duelist 1 | . . 1 . . . . . . . . . . Sentry 8 | . . 6 2 . . . . . . . . . Hunter 1 | . . . 1 . . . . . . . . . Best Kill Streak 6 | . 3 5 6 . . . . . 2 . 1 1 Combat Bots Only 4 | . 3 4 4 . . . . . . . . . Max Kills in Single Turn 3 | . 1 2 3 . . . . . 1 . 1 1 Gunslinging 1 | . . 1 1 . . . . . . . . . Exploded 1 | . . . 1 . . . . . . . . . Melee . | . . . . . . . . . . . . . Uniques/NPCs Destroyed . | . . . . . . . . . . . . . Combat | -11 -10 -9 -8 -7 -6 -5 -5 -5 -4 -3 -3 -2 -------- Run | Yrd Mat Mat Mat Fac Fac Fac Upp Upp Fac Res Tes Res Hostile Shots Fired 1139 | . 16 155 137 50 39 138 3 3 75 165 58 300 Missed 576 | . 4 43 42 27 24 91 3 2 54 101 35 150 Damage Taken 10333 | . 83 1339 1382 241 131 914 . 22 648 1249 561 3763 Core 2849 | . 6 217 167 59 29 218 . 22 255 259 167 1450 Absorbed by Shields 170 | . . . . . 25 . . . . 126 . 19 Redirected to Shielding 501 | . . . 24 9 9 130 . . 109 . . 220 Ignored by Resistances 83 | . . . . . . . . . . . 38 45 Core Remaining (%) 79 | 100 97 45 69 91 96 . . 76 77 . 67 . Volleys Fired 226 | . 10 137 74 . . 3 . . . . . 2 Largest 2 | . 2 2 2 . . 1 . . . . . 2 Hottest 114 | . 60 46 53 . . 7 . . . . . 114 Shots Fired 443 | . 20 274 142 . . 3 . . . . . 4 Gun 435 | . 20 274 139 . . . . . . . . 2 Cannon . | . . . . . . . . . . . . . Launcher 5 | . . . 3 . . . . . . . . 2 Special 3 | . . . . . . 3 . . . . . . Kinetic 428 | . 15 274 139 . . . . . . . . . Thermal 7 | . 5 . . . . . . . . . . 2 Explosive 5 | . . . 3 . . . . . . . . 2 Electromagnetic . | . . . . . . . . . . . . . Robot Hit Streak 17 | . 3 17 13 . . 4 . . . . . 3 Robot Miss Streak 5 | . 3 4 5 . . 1 . . . . . 2 Penetration Max . | . . . . . . . . . . . . . Secondary Targets 8 | . . 5 3 . . . . . . . . . Max Gunslinging Chain 1 | . . 1 1 . . . . . . . . . Shots Hit Robots 310 | . 10 194 95 . . 2 . . 3 . 3 3 Core Hits 131 | . 7 65 53 . . . . . . . 1 5 Critical Kills 2 | . . 2 . . . . . . . . . . Critical Parts Destroyed 2 | . . 1 1 . . . . . . . . . Critical Strikes 4 | . . 3 1 . . . . . . . . . Destroy 4 | . . 3 1 . . . . . . . . . Melee Attacks 27 | . . . . 5 . . 3 . 6 5 4 4 Impact 14 | . . . . . . . 3 . 6 5 . . Slashing 13 | . . . . 5 . . . . . . 4 4 Piercing . | . . . . . . . . . . . . . Sneak Attacks 2 | . . . . . . . . . 1 . . 1 Combat Hostiles . | . . . . . . . . . . . . . Follow-up Attacks . | . . . . . . . . . . . . . Damage Inflicted 5725 | . 111 3008 1806 . . . . . 180 . 165 455 Guns 4516 | . 111 2964 1403 . . . . . . . . 38 Cannons . | . . . . . . . . . . . . . Explosions 698 | . . . 403 . . . . . . . . 295 Melee 467 | . . . . . . . . . 180 . 165 122 Ramming 44 | . . 44 . . . . . . . . . . Kinetic 4432 | . 65 2964 1403 . . . . . . . . . Thermal 84 | . 46 . . . . . . . . . . 38 Explosive 698 | . . . 403 . . . . . . . . 295 Electromagnetic . | . . . . . . . . . . . . . Impact 180 | . . . . . . . . . 180 . . . Slashing 287 | . . . . . . . . . . . 165 122 Piercing . | . . . . . . . . . . . . . Highest Corruption 15 | . . . . . . 1 1 1 2 . 2 15 Average Corruption 2 | . . . . . . 1 1 1 1 . 2 6 Corruption Purged . | . . . . . . . . . . . . . Corruption Blocked . | . . . . . . . . . . . . . Effects 11 | . . . . . . . . . 2 . . 9 Message Errors 2 | . . . . . . . . . 1 . . 1 Matter Fused 2 | . . . . . . . . . . . . 2 Heat Flow Errors 1 | . . . . . . . . . 1 . . . Energy Discharges 2 | . . . . . . . . . . . . 2 Data Loss (minor) 4 | . . . . . . . . . . . . 4 Overload Shots . | . . . . . . . . . . . . . Overflow Damage 132 | . . 2 . . . . . . 126 . . 4 Projectiles . | . . . . . . . . . . . . . Explosions 4 | . . . . . . . . . . . . 4 Melee 128 | . . 2 . . . . . . 126 . . . Knockbacks 2 | . . 1 . . . . . . 1 . . . Impact 2 | . . 1 . . . . . . 1 . . . Kinetic . | . . . . . . . . . . . . . Secondary . | . . . . . . . . . . . . . Self-Inflicted Damage . | . . . . . . . . . . . . . Shots . | . . . . . . . . . . . . . Rammed 5 | . . 5 . . . . . . . . . . Targets Rammed 6 | . . 6 . . . . . . . . . . Kicked . | . . . . . . . . . . . . . Crushed 1 | . . 1 . . . . . . . . . . Highest Temperature 405 | . 20 77 61 31 . 3 . . 91 59 7 405 Average Temperature 23 | . 13 16 19 9 . 3 . . 22 21 7 137 Received Heat Transfer 2131 | . . 486 693 114 30 63 . . 42 63 108 532 Siege Activations . | . . . . . . . . . . . . . Robots Corrupted . | . . . . . . . . . . . . . Combat Hostiles . | . . . . . . . . . . . . . Parts Fried 4 | . . . . . . . . . 4 . . . Impact Corruptions 6 | . . 1 . . . . . . 5 . . . Robots Melted . | . . . . . . . . . . . . . Combat Hostiles . | . . . . . . . . . . . . . Parts Melted 1 | . 1 . . . . . . . . . . . Heat Transferred 137 | . 100 . . . . . . . . . . 37 Parts Sabotaged . | . . . . . . . . . . . . . Parts Stolen . | . . . . . . . . . . . . . Parts Stripped . | . . . . . . . . . . . . . Power Chain Reactions . | . . . . . . . . . . . . . Alert | -11 -10 -9 -8 -7 -6 -5 -5 -5 -4 -3 -3 -2 ------- Run | Yrd Mat Mat Mat Fac Fac Fac Upp Upp Fac Res Tes Res Peak Influence 644 | . 101 436 281 169 117 488 . . 264 644 438 459 Initial 356 | . . . 149 25 82 . . . 157 41 356 162 Average 155 | . 37 215 92 43 79 261 . . 121 145 348 201 Maximum Alert Level 2 | . . 2 1 . . 2 . . 1 2 2 2 Low Security (%) 68 | 100 100 52 89 100 100 35 . . 81 76 . 46 Level 1 26 | . . 40 10 . . 52 . . 18 9 94 48 Level 2 4 | . . 7 . . . 11 . . . 14 5 4 Level 3 . | . . . . . . . . . . . . . Level 4 . | . . . . . . . . . . . . . Level 5 . | . . . . . . . . . . . . . High Security . | . . . . . . . . . . . . . Max Security . | . . . . . . . . . . . . . Squads Dispatched 29 | . . 4 3 1 1 4 . . 5 7 . 4 Investigation 17 | . . 2 1 1 . 2 . . 4 5 . 2 Extermination 1 | . . . . . . . . . 1 . . . Reinforcement 10 | . . 2 2 . 1 2 . . . 2 . 1 Assault . | . . . . . . . . . . . . . Garrison 1 | . . . . . . . . . . . . 1 Intercept . | . . . . . . . . . . . . . Searches Triggered 2 | . . . . . . 1 . . . 1 . . Construction Impeded 1 | . . . . . . . . . . 1 . . Haulers Reinforced . | . . . . . . . . . . . . . Active Scanning Responses . | . . . . . . . . . . . . . Cargo Convoy Interrupts . | . . . . . . . . . . . . . Stealth | -11 -10 -9 -8 -7 -6 -5 -5 -5 -4 -3 -3 -2 --------- Run | Yrd Mat Mat Mat Fac Fac Fac Upp Upp Fac Res Tes Res Distress Signals 15 | . . 5 1 2 1 . . . 1 1 . 4 Communications Jammed 42 | . . . . . . 35 . . . 5 . 2 Distress Signals 17 | . . . . . . 10 . . . 5 . 2 Times Spotted 340 | . 10 49 33 15 8 56 9 4 41 65 9 41 Peak Tracking Total 27 | . 3 5 4 7 6 12 9 5 14 27 8 20 Tactical Retreats 51 | . . 2 . 3 1 14 4 . 9 7 1 10 Traps | -11 -10 -9 -8 -7 -6 -5 -5 -5 -4 -3 -3 -2 ------- Run | Yrd Mat Mat Mat Fac Fac Fac Upp Upp Fac Res Tes Res Traps Triggered 8 | . . 1 . 1 1 1 . . . 3 . 1 Indirectly . | . . . . . . . . . . . . . Trap Hack Attempts . | . . . . . . . . . . . . . Triggered . | . . . . . . . . . . . . . Disarmed . | . . . . . . . . . . . . . Reprogrammed . | . . . . . . . . . . . . . Reused . | . . . . . . . . . . . . . Traps Extracted . | . . . . . . . . . . . . . Installed . | . . . . . . . . . . . . . Triggered . | . . . . . . . . . . . . . Machines | -11 -10 -9 -8 -7 -6 -5 -5 -5 -4 -3 -3 -2 ---------- Run | Yrd Mat Mat Mat Fac Fac Fac Upp Upp Fac Res Tes Res Machines Disabled 3 | . . 1 1 . . . . . . . . 1 Max in Single Turn 1 | . . 1 1 . . . . . . . . 1 Garrison Access 4 | . . . 1 . . . . . 1 1 . 1 Machines Repaired . | . . . . . . . . . . . . . Machines Dismantled . | . . . . . . . . . . . . . Machines Sabotaged . | . . . . . . . . . . . . . Overloaded Fab Kills . | . . . . . . . . . . . . . Hacking | -11 -10 -9 -8 -7 -6 -5 -5 -5 -4 -3 -3 -2 --------- Run | Yrd Mat Mat Mat Fac Fac Fac Upp Upp Fac Res Tes Res Machines Accessed 68 | . 5 6 6 6 1 9 . . 10 11 3 11 Terminals 55 | . 5 6 5 6 1 6 . . 7 8 3 8 Fabricators 3 | . . . . . . 1 . . . 2 . . Repair Stations . | . . . . . . . . . . . . . Recycling Units 3 | . . . . . . . . . 1 . . 2 Scanalyzers 1 | . . . . . . . . . 1 . . . Garrison Access 6 | . . . 1 . . 2 . . 1 1 . 1 Total Hacks 193 | . 11 17 18 16 3 18 . . 28 33 7 42 Successful 102 | . 6 8 9 9 2 7 . . 18 22 3 18 Failed 91 | . 5 9 9 7 1 11 . . 10 11 4 24 Catastrophic 12 | . 2 1 1 2 . 1 . . . 1 1 3 Database Lockouts . | . . . . . . . . . . . . . Manual 168 | . 11 17 17 16 4 12 . . 22 28 7 34 Terminals 167 | . 11 17 17 16 3 12 . . 22 28 7 34 Fabricators 6 | . . . . . . 2 . . . 4 . . Repair Stations . | . . . . . . . . . . . . . Recycling Units 6 | . . . . . . . . . 3 . . 3 Scanalyzers 2 | . . . . . . . . . 2 . . . Garrison Access 12 | . . . 1 . . 4 . . 1 1 . 5 Terminal Hacks 58 | . 3 5 6 5 2 3 . . 9 12 2 11 Part Schematic 1 | . . . . . 1 . . . . . . . Level Access Points 2 | . . . . . . . . . . . 1 1 Emergency Access Points 1 | . . . . . . . . . . . . 1 Terminal Index 6 | . 1 1 1 1 . . . . 1 1 . . Fabricator Index 1 | . . . . . . . . . . 1 . . Repair Station Index 1 | . . . . . . . . . . 1 . . Recycling Unit Index 1 | . . . . . . . . . . 1 . . Alert Level 3 | . . . . . . . . . . 1 . 2 Unreport Threat 22 | . 1 1 3 2 1 2 . . 5 2 1 4 Transport Status 2 | . . 2 . . . . . . . . . . Recall Investigation 5 | . . . . 1 . 1 . . . 2 . 1 Recall Extermination 2 | . . . . . . . . . 1 . . 1 Recall Reinforcements 3 | . . . 1 . . . . . . 1 . 1 Hauler Manifests 3 | . 1 1 1 . . . . . . . . . Registered Components 3 | . . . . 1 . . . . 1 1 . . Registered Prototypes 2 | . . . . . . . . . 1 1 . . Fabricator Hacks 6 | . . . . . . 2 . . . 4 . . Load Schematic 3 | . . . . . . 1 . . . 2 . . Build 3 | . . . . . . 1 . . . 2 . . Repair Station Hacks . | . . . . . . . . . . . . . Recycling Unit Hacks 4 | . . . . . . . . . 1 . . 3 Retrieve Matter 4 | . . . . . . . . . 1 . . 3 Scanalyzer 2 | . . . . . . . . . 2 . . . Insert Component 1 | . . . . . . . . . 1 . . . Analyze 1 | . . . . . . . . . 1 . . . Garrison Access Hacks 4 | . . . 1 . . . . . 1 1 . 1 Seal Access 4 | . . . 1 . . . . . 1 1 . 1 Unauthorized Hacks 27 | . 3 3 2 3 . 2 . . 5 5 1 3 Terminals 27 | . 3 3 2 3 . 2 . . 5 5 1 3 Assimilate 7 | . . . . 1 . 2 . . . 2 1 1 Botnet 20 | . 3 3 2 2 . . . . 5 3 . 2 Fabricators . | . . . . . . . . . . . . . Repair Stations . | . . . . . . . . . . . . . Recycling Units . | . . . . . . . . . . . . . Scanalyzers . | . . . . . . . . . . . . . Garrison Access . | . . . . . . . . . . . . . Data Cores Recovered 1 | . . . . . . 1 . . . . . . Used . | . . . . . . . . . . . . . Hacking Detections 64 | . 5 6 5 6 1 9 . . 9 10 3 10 Full Trace Events 17 | . 1 1 1 1 . 2 . . 4 5 . 2 Feedback Events 4 | . . . . . . . . . 2 1 . 1 Corruption 1 | . . . . . . . . . 1 . . . Hackware Fried 3 | . . . . . . . . . 1 1 . 1 Feedback Blocked . | . . . . . . . . . . . . . Robot Schematics Acquired . | . . . . . . . . . . . . . Robots Built . | . . . . . . . . . . . . . Authchips . | . . . . . . . . . . . . . Time . | . . . . . . . . . . . . . Total Robot Build Rating . | . . . . . . . . . . . . . Part Schematics Acquired 2 | . . . . . 1 . . . 1 . . . Parts Built 2 | . . . . . . 1 . . . 1 . . Authchips . | . . . . . . . . . . . . . Time 225 | . . . . . . 47 . . . 178 . . Total Part Build Rating 9 | . . . . . . 5 . . . 4 . . Parts Repaired . | . . . . . . . . . . . . . Time . | . . . . . . . . . . . . . Parts Recycled . | . . . . . . . . . . . . . Recycled Matter . | . . . . . . . . . . . . . Retrieved Matter . | . . . . . . . . . . . . . Retrieved Components . | . . . . . . . . . . . . . Parts Scanalyzed 1 | . . . . . . . . . 1 . . . Part Schematics Acquired 1 | . . . . . . . . . 1 . . . Parts Damaged . | . . . . . . . . . . . . . Bothacking | -11 -10 -9 -8 -7 -6 -5 -5 -5 -4 -3 -3 -2 ------------ Run | Yrd Mat Mat Mat Fac Fac Fac Upp Upp Fac Res Tes Res Used RIF Installer . | . . . . . . . . . . . . . Robots Hacked 2 | . . . . . . 2 . . . . . . Non-combat 2 | . . . . . . 2 . . . . . . Combat . | . . . . . . . . . . . . . Robot Hacks Applied 2 | . . . . . . 2 . . . . . . parse_system 1 | . . . . . . 1 . . . . . . check_alert 1 | . . . . . . 1 . . . . . . Relay Couplers Released . | . . . . . . . . . . . . . Fabnet Peak Effective % . | . . . . . . . . . . . . . Robots Rewired . | . . . . . . . . . . . . . Allies Hacked . | . . . . . . . . . . . . . Hacks Repelled . | . . . . . . . . . . . . . Allies | -11 -10 -9 -8 -7 -6 -5 -5 -5 -4 -3 -3 -2 -------- Run | Yrd Mat Mat Mat Fac Fac Fac Upp Upp Fac Res Tes Res Total Allies 8 | . . . . 1 . 1 . . . 5 1 . Largest Group 4 | . . . . 1 . 1 . . . 4 1 1 Highest-Rated Group 159 | . . . . 10 . 26 . . . 159 26 26 Highest-Rated Ally 46 | . . . . 10 . 26 . . . 46 26 26 Total Orders . | . . . . . . . . . . . . . Ally Attacks 13 | . . . . . . . . . . 13 . . Total Damage 394 | . . . . . . . . . . 394 . . Kills 5 | . . . . . . . . . . 5 . . Allies Corrupted . | . . . . . . . . . . . . . Allies Melted . | . . . . . . . . . . . . . Intel | -11 -10 -9 -8 -7 -6 -5 -5 -5 -4 -3 -3 -2 ------- Run | Yrd Mat Mat Mat Fac Fac Fac Upp Upp Fac Res Tes Res Robot Analysis Total . | . . . . . . . . . . . . . Derelict Logs Recovered 2 | . . . . . . . 1 1 . . . . Drone Launches . | . . . . . . . . . . . . . Drone Recoveries . | . . . . . . . . . . . . . Exploration | -11 -10 -9 -8 -7 -6 -5 -5 -5 -4 -3 -3 -2 ------------- Run | Yrd Mat Mat Mat Fac Fac Fac Upp Upp Fac Res Tes Res Turns Passed 7478 | 67 872 2931 1529 220 93 459 143 58 403 275 94 334 Spaces Moved 7041 | 39 271 769 457 607 266 1232 405 181 985 683 210 936 Core 31 | 10 . 3 4 . . . . . . . . 14 Treads 1231 | 29 271 766 165 . . . . . . . . . Legs . | . . . . . . . . . . . . . Wheels 292 | . . . 288 4 . . . . . . . . Hover . | . . . . . . . . . . . . . Flight 5487 | . . . . 603 266 1232 405 181 985 683 210 922 Fastest Speed 21 | 50 160 320 200 26 26 26 32 32 25 25 26 21 Average Speed 88 | 147 308 325 280 27 26 26 32 32 29 25 30 27 Slowest Speed 1650 | 160 320 1650 1500 215 26 27 32 32 32 26 34 50 Overloaded Moves 38 | . . . . . . . . . . . 33 5 Propulsion Burnouts . | . . . . . . . . . . . . . Robots Hopped 109 | . . . . 5 3 21 1 . 8 18 9 44 Cave-ins Triggered . | . . . . . . . . . . . . . Exploration Rate (%) 37 | 5 56 73 44 15 10 44 68 36 33 34 30 38 Regions Visited 12 Branch Regions 3 Pre-discovered Areas . | . . . . . . . . . . . . . Known Exits Taken 2 | . . . . . . . . . 1 . 1 . Unknown Exits Taken 10 | 1 1 1 1 1 1 1 1 1 . 1 . . Scrap Searched 2 | . . . . . . . 2 . . . . . Spaces Dug 18 | . . . . 5 . . 3 . 2 4 1 3 Terrain Destroyed 40 | . . . 7 5 . . 3 . 2 4 1 18 Melee 18 | . . . . 5 . . 3 . 2 4 1 3 Projectile . | . . . . . . . . . . . . . AOE 22 | . . . 7 . . . . . . . . 15 Terrain Rammed . | . . . . . . . . . . . . . Walls Destroyed . | . . . . . . . . . . . . . Machines Disabled . | . . . . . . . . . . . . . Actions | -11 -10 -9 -8 -7 -6 -5 -5 -5 -4 -3 -3 -2 --------- Run | Yrd Mat Mat Mat Fac Fac Fac Upp Upp Fac Res Tes Res Total 7766 | 46 291 964 580 655 286 1347 411 180 1077 755 222 952 Wait 267 | . . 14 20 8 . 92 . . 65 52 1 15 Move 6831 | 38 270 768 456 597 259 1191 402 180 968 651 191 860 Hop 89 | . . . . 4 3 19 1 . 8 13 9 32 Pick Up 62 | 2 3 23 14 3 1 3 2 . 4 3 . 4 Fast Attach 58 | 6 2 6 1 4 2 4 . . 6 4 8 15 Attach 65 | . . 7 12 7 2 10 2 . 10 5 4 6 Detach 22 | . . 1 . 1 1 6 1 . 7 2 2 1 Swap 13 | . 2 . 1 4 2 . . . . 3 . 1 Drop 51 | . 4 2 2 22 3 1 . . 3 3 3 8 Fire 226 | . 10 137 74 . . 3 . . . . . 2 Melee 27 | . . . . 5 . . 3 . 6 5 4 4 Ram . | . . . . . . . . . . . . . Kick . | . . . . . . . . . . . . . Crush 6 | . . 6 . . . . . . . . . . Escape Stasis 49 | . . . . . 13 18 . . . 14 . 4 Rewire . | . . . . . . . . . . . . . Trap . | . . . . . . . . . . . . . Miscellaneous . | . . . . . . . . . . . . . Route ------- -11/Scrapyard -10/Materials (discovered 2 exits: *Mat / [*Min]) -9/Materials (discovered 2 exits: *Mat / [*Min]) -8/Materials (discovered 2 exits: *Fac / [*Sto]) -7/Factory -6/Factory -5/Factory (discovered 3 exits: *Fac x2 / [*Upp]) -5/Upper Caves -5/Upper Caves -4/Factory (discovered 2 exits: *Res x2) -3/Research (discovered 2 exits: *Arm / *Tes) -3/Testing -2/Research (discovered 4 exits: Acc x3 / [*Qua]) History --------- Turn | Location | Event 2 | -11/Scrapyard | Met Revision 17 16 | -11/Scrapyard | Discovered new exit (range 15) 68 | -11/Scrapyard | Entered Materials 318 | -10/Materials | Build established: Mutant 741 | -10/Materials | Discovered new exit (range 5) 882 | -10/Materials | Discovered new exit (range 16) 940 | -10/Materials | Entered another Materials area 940 | -9/Materials | Evolved 2 slots: Utility x2 1535 | -9/Materials | Discovered new exit (range 11) 3434 | -9/Materials | Core integrity fell below 50% 3655 | -9/Materials | Build established: Scavenger-Mutant 3855 | -9/Materials | Discovered new exit (range 5) 3871 | -9/Materials | Entered another Materials area 3871 | -8/Materials | Evolved 2 slots: Utility x2 4398 | -8/Materials | Lost 3 parts (2n1w) 4409 | -8/Materials | Build established: Hacker-Mutant 4657 | -8/Materials | Lost 5 parts (1p1n1u2w) 4858 | -8/Materials | Discovered new exit (range 14) 4897 | -8/Materials | Discovered new exit (range 12) 5400 | -8/Materials | Entered Factory 5400 | -7/Factory | Evolved 2 slots: Propulsion x2 5445 | -7/Factory | Discovered new exit (range 5) 5620 | -7/Factory | Entered another Factory area 5620 | -6/Factory | Evolved 2 slots: Propulsion x1, Utility x1 5656 | -6/Factory | Spotted B-75 Beast 5702 | -6/Factory | Build established: Hacker-Sprinter 5709 | -6/Factory | Discovered new exit (range 9) 5713 | -6/Factory | Entered another Factory area 5713 | -5/Factory | Evolved 2 slots: Power x1, Utility x1 5781 | -5/Factory | Discovered new exit (range 10) 5943 | -5/Factory | Discovered new exit (range 4) 5985 | -5/Factory | Discovered new exit (range 13) 6013 | -5/Factory | Search patrols dispatched 6107 | -5/Factory | Fabricated Imp. Hacking Suite? 6172 | -5/Factory | Entered Upper Caves 6202 | -5/Upper Caves | Lost 5 parts (2p1n2u) 6244 | -5/Upper Caves | Attracted the attention of an 0b10 outpost 6307 | -5/Upper Caves | Discovered new exit (range 10) 6315 | -5/Upper Caves | Entered another Upper Caves area 6353 | -5/Upper Caves | Learned location of 1 exit from Factory 6370 | -5/Upper Caves | Discovered new exit (range 11) 6373 | -5/Upper Caves | Entered Factory 6373 | -4/Factory | Evolved 2 slots: Utility x2 6374 | -4/Factory | Identified exit to Research 6398 | -4/Factory | Hacking Suite fried by hacking feedback 6685 | -4/Factory | Discovered exit to Research (range 15) 6776 | -4/Factory | Entered Research 6776 | -3/Research | Evolved 2 slots: Utility x2 6777 | -3/Research | Identified exit to Armory 6779 | -3/Research | Lost 3 parts (2n1u) 6837 | -3/Research | Fabricated Cld. VTOL Module (x1) 6986 | -3/Research | Lost 5 parts (1n4u) 7001 | -3/Research | System Shield fried by hacking feedback 7026 | -3/Research | Search patrols dispatched 7032 | -3/Research | Allied Derelicts emerged from ambush trap array 7043 | -3/Research | Lost 3 parts (3u) 7048 | -3/Research | Discovered new exit (range 15) 7051 | -3/Research | Entered Testing 7051 | -3/Testing | Spotted PP-XO2UCNWD9V 7064 | -3/Testing | Found Prototype Slashing Weapon 7064 | -3/Testing | Identified Molecular Scythe 7087 | -3/Testing | Lost 6 parts (1p2n3u) 7097 | -3/Testing | Found Prototype Device 7097 | -3/Testing | Identified Exp. Thermal Shield 7116 | -3/Testing | Identified exit to Research 7145 | -3/Testing | Entered Research 7145 | -2/Research | Accompanied by 1 ally 7145 | -2/Research | Evolved 2 slots: Propulsion x1, Utility x1 7254 | -2/Research | Imp. Hacking Suite fried by hacking feedback 7382 | -2/Research | Identified exit to Access 7386 | -2/Research | Lost 7 parts (2p1n4u) 7414 | -2/Research | Discovered new exit (range 14) 7418 | -2/Research | Core integrity fell below 50% 7428 | -2/Research | Spotted B-90 Cyclops 7452 | -2/Research | Lost 11 parts (1p3n6u1w) 7463 | -2/Research | Garrison activated, responded to threat 7470 | -2/Research | System corruption reached 10% 7475 | -2/Research | Core integrity fell below 20% 7479 | -2/Research | Destroyed by H-88 Terminator with Heavy Machine Gun Last Messages --------------- 07467_ Emergency Access malfunctions. 07469_ Dropped Lyr. Heavy Armor Plating. 07469_ Electron Diverter destroyed. 07469_ Penetrated by Slug. 07469_ Dropped Micro-nuke Launcher. 07471_ Dropped Enh. Quantum Rifle. 07472_ The unstable cave ceiling collapses. 07472_ Slug penetrates Earth. 07473_ The unstable cave ceiling collapses. 07473_ Slug penetrates P-80 Master. 07473_ P-80 Master destroyed. 07473_ Slug penetrates P-80 Master. 07475_ Penetrated by Slug. 07475_ Slug penetrates H-88 Terminator. 07476_ Slug penetrates Wall. 07476_ Imp. Transmission Jammer destroyed. 07476_ Slug penetrates Wall. 07477_ Penetrated by Slug. 07477_ Exp. Matter Compressor destroyed. 07479_ Penetrated by Slug. Map ----- +----------------------------------------------------+ | ???????# # = ########## ##?# | | ???????# = # ########## #??# | | ?????###""#######+#### # ## ##?# | | ?????# # # % ### | | ?????# # """ # | | ?????### # """ + | | ???????" "" # """ # % | | ???????# """ G" ########= %# ### | | ???????# "" "" #??????# ! ## ##?? | | ???????# """ #??????########## #??? | | ???????# ?????#[ " #??? | | ???????# ????# !! ! + #??? | | ???????# ???# !! # #??? | | ####???# """ """ T ??# ! # #??? | | ??# """ """ ?########?# #??? | | ? ??# """ """ h ???????????T #?? | | "" ?# h | ???????????" """? | | """ ?# ?????????? ## | | S" # ???????????" ""? | | """ # """ """ ! ???????????? | | """ / """ """ h ????????????? "? | | # """ """ n#########?????? < ? | | # n# #?????? "" | | ######## hhh# #?????? " " " ? | | ????# # ###?????""""""?? | | ????# @# ""#????????????? | | ????# Y ""#????????????? | | ????# p ""#????????????? | | ?########/######+### S#????????????? | | ?# ] ## ] ""#????????????? | | ?# ## ""#????????????? | | ?#! = ## ! ""#????????????? | | ?# """"""" ## p% ###????????????? | | ?# ! """"""" ## ! #??????????????? | | ?# """"""" ## " #??????????????? | | ?# ## " #??????????????? | | ?# ? ## "" #??????????????? | | ?#????? ## [/ #??????????????? | | ???????? ## ! ]!#########??????????????? | | ????????###################??????????????????????? | | | | | | | | | | | | | | | | | | | | | +----------------------------------------------------+ Best States ------------- Heat Dissipation 87 Energy Generation 55 Energy Capacity 450 Matter Stores 300 Matter Capacity 800 Sight Range 16 Terrain Scan Density 10 ECM Strength 2 Jamming Range 14 Cloak Strength 3 Power Amplification 40 Additional Mass Support 12 Armor Coverage 600 Resistance: TH 30 Utility Shielding 66 Evasion (%) 76 Targeting Accuracy 5 Melee Accuracy 5 Recoil Reduction 2 Offensive Hacking 54 Defensive Hacking 24 Item Schematics ----------------- Imp. Hacking Suite | -6/Factory | Hacked Cld. VTOL Module | -4/Factory | Scanalyzed Robot Schematics ------------------ None Fabricated ------------ Imp. Hacking Suite | x1 | -5/Factory Cld. VTOL Module | x1 | -3/Research Alien Tech Used ----------------- None Achievements -------------- Total Silence Challenges ------------ None Game ------ Seed RefineryTiamatMediator Manual? 0 Play Time 01:54:54 Cumulative 24.4 hours Start 2024.04.15 @ 13:58:04 End 2024.04.15 @ 15:57:46 Sessions 1 Manual Loads 0 Difficulty Rogue Special Mode None Game No. 37 Rogue 37 Adventurer 0 Explorer 0 Win Type - Total 1 Types 1/0/0/0/0/0/0/0/0 Lore% 17 Gallery% 37 Achievement% 31 Wizard Run 0 Options --------- Layout 0 ASCII 0 Keyboard 0 Movement Numpad Keybinds 0 Fullscreen 2 Font 18/SmallcapsGlow Map View 76x50 Zoom Use 0% Tactical HUD 1 Map Filters NONE Filters NONE Steam 1 RUN: e97e0f5b-e826-4545-a95a-a741b23fdbc0